Cogmind - Beta 10.2 @@@ ROGUE MODE // 2021.06.15 @ 23:31:23 Player: Alix Result: Destroyed by L-31 Rogue with Katana Performance ------------- Evolutions (1) 500 Regions Visited (3) 600 Robots Destroyed (11) 55 Value Destroyed (220) 220 Prototype IDs (0) 0 Alien Tech Used (0) 0 Bonus (0) 0 TOTAL SCORE: 1375 Bonus ------- None Cogmind --------- Core Integrity 0/400 Matter 234/300 Energy 100/100 System Corruption 0% Temperature Cool (0) Movement Core (50) Location -9/Mines Parts ------- > --- POWER (1) -------- (None) > --- PROPULSION (4) --- (None) > --- UTILITY (2) ------ Structural Scanner Improved Targeting Computer > --- WEAPON (2) ------- (None) > --- INVENTORY (4) ---- Light Angular Momentum Engine Peak State ------------ > --- POWER ------------ Light Angular Momentum Engine > --- PROPULSION ------- Flight Unit Flight Unit Flight Unit > --- UTILITY ---------- Small Storage Unit Improved Targeting Computer > --- WEAPON ----------- Assault Rifle Mining Laser > --- INVENTORY -------- Ion Engine Hardened Light Armor Plating [Rating: 13] Favorites ----------- Power Light Ion Engine Engine Light Ion Engine Propulsion Flight Unit Wheel Wheel Flight Unit Flight Unit Utility Small Storage Unit Device Improved Sensor Array Storage Small Storage Unit Processor Improved Targeting Computer Weapon Assault Rifle Energy Gun Small Laser Ballistic Gun Assault Rifle Special Weapon Mining Laser Build | -11 -10 -9 -9 ------- Run | Scr Mat Mat Min Slots Evolved 2 | . . 2 . Power . | . . . . Propulsion 2 | . . 2 . Utility . | . . . . Weapon . | . . . . Parts Attached 34 | 6 11 3 14 Power 8 | 1 2 . 5 Engine 8 | 1 2 . 5 Core . | . . . . Reactor . | . . . . Propulsion 8 | 2 3 1 2 Treads . | . . . . Leg . | . . . . Wheel 4 | 2 1 . 1 Hover . | . . . . Flight 4 | . 2 1 1 Utility 5 | 1 . 1 3 Device 2 | . . . 2 Storage 2 | 1 . . 1 Processor 1 | . . 1 . Hackware . | . . . . Protection . | . . . . Artifact . | . . . . Weapon 13 | 2 6 1 4 Energy Gun 4 | 1 3 . . Energy Cannon . | . . . . Ballistic Gun 7 | 1 3 . 3 Ballistic Cannon . | . . . . Launcher . | . . . . Special Weapon 2 | . . 1 1 Impact Weapon . | . . . . Slashing Weapon . | . . . . Piercing Weapon . | . . . . Special Melee Weapon . | . . . . Unidentified Prototypes . | . . . . Parts Lost 14 | . 2 . 12 Power 3 | . . . 3 Propulsion 6 | . 1 . 5 Utility 1 | . . . 1 Weapon 4 | . 1 . 3 Highest Loss Streak 4 | . 2 . 4 Average Slot Usage (%) 59 | . 76 52 46 Engine 9 | . 14 11 4 Wheel 8 | . 18 . 1 Flight 14 | . 8 24 17 Device 2 | . . . 4 Storage 9 | . 14 11 4 Processor 5 | . . 2 11 Energy Gun 3 | . 9 . . Ballistic Gun 5 | . 10 . 1 Special Weapon 1 | . . 4 1 Naked Turns . | . . . . Heaviest Build 16 | 10 11 8 16 Greatest Support 26 | 26 26 12 12 Greatest Overweight (x) 1 | . . . 1 Average Overweight (x) . | . . . . Largest Inventory Capacity 6 | 6 6 6 6 Average Capacity 5 | 5 6 6 4 Most Carried 6 | 2 6 6 5 Average Carried 3 | 1 5 5 2 Final Capacity 6 | 6 6 6 4 Final Carried 6 | 2 6 3 1 Class Distribution -------------------- 100% | Mutant Dominant Class ---------------- Mutant | -10/Materials Mutant | -9/Materials Mutant | -9/Mines Resources | -11 -10 -9 -9 ----------- Run | Scr Mat Mat Min Matter Collected 506 | 244 133 67 62 Remotely . | . . . . Salvage Created 323 | . 288 . 35 Parts 27 | . 20 . 7 Haulers Intercepted . | . . . . Recyclers Shooed . | . . . . Parts Field Recycled . | . . . . Retrieved Matter . | . . . . Parts Self-Destructed . | . . . . Prevented . | . . . . Kills | -11 -10 -9 -9 ------- Run | Scr Mat Mat Min Combat Hostiles Destroyed 9 | . 7 . 2 Guns 9 | . 7 . 2 Classes Destroyed 4 | . 3 . 1 Builder 1 | . . . 1 Recycler 1 | . 1 . . Swarmer 5 | . 3 . 2 Grunt 4 | . 4 . . Best Kill Streak 7 | . 7 . 3 Combat Bots Only 3 | . 3 . 2 Max Kills in Single Turn 2 | . 2 . 1 Gunslinging 1 | . 1 . . Exploded . | . . . . Melee . | . . . . Uniques/NPCs Destroyed . | . . . . Combat | -11 -10 -9 -9 -------- Run | Scr Mat Mat Min Damage Taken 1310 | . 423 . 887 Core 541 | . 128 . 413 Absorbed by Shields . | . . . . Core Remaining (%) 74 | 100 48 . . Volleys Fired 37 | . 23 . 14 Largest 2 | . 2 . 2 Hottest 120 | . 70 . 120 Shots Fired 60 | . 43 . 17 Gun 57 | . 43 . 14 Cannon . | . . . . Launcher . | . . . . Special 3 | . . . 3 Kinetic 37 | . 23 . 14 Thermal 23 | . 20 . 3 Explosive . | . . . . Electromagnetic . | . . . . Robot Hit Streak 8 | . 7 . 8 Robot Miss Streak 2 | . 2 . 2 Penetration Max . | . . . . Secondary Targets 1 | . 1 . . Max Gunslinging Chain 1 | . 1 . . Shots Hit Robots 43 | . 29 . 14 Core Hits 17 | . 13 . 4 Critical Hits . | . . . . Critical Kills . | . . . . Critical Parts Destroyed . | . . . . Melee Attacks . | . . . . Impact . | . . . . Slashing . | . . . . Piercing . | . . . . Sneak Attacks . | . . . . Combat Hostiles . | . . . . Follow-up Attacks . | . . . . Damage Inflicted 495 | . 307 . 188 Guns 441 | . 307 . 134 Cannons . | . . . . Explosions . | . . . . Melee . | . . . . Ramming 6 | . . . 6 Kinetic 306 | . 172 . 134 Thermal 183 | . 135 . 48 Explosive . | . . . . Electromagnetic . | . . . . Impact . | . . . . Slashing . | . . . . Piercing . | . . . . Highest Corruption . | . . . . Average Corruption . | . . . . Corruption Purged . | . . . . Overload Shots . | . . . . Overflow Damage 4 | . . . 4 Projectiles 4 | . . . 4 Explosions . | . . . . Melee . | . . . . Knockbacks . | . . . . Impact . | . . . . Kinetic . | . . . . Secondary . | . . . . Self-Inflicted Damage 2 | . . . 2 Shots . | . . . . Rammed 3 | . . . 3 Targets Rammed 3 | . . . 3 Kicked . | . . . . Crushed . | . . . . Highest Temperature 123 | . 123 . 93 Average Temperature 54 | . 57 . 47 Received Heat Transfer 366 | . 213 . 153 Siege Activations . | . . . . Robots Corrupted . | . . . . Combat Hostiles . | . . . . Parts Fried . | . . . . Impact Corruptions . | . . . . Robots Melted . | . . . . Combat Hostiles . | . . . . Parts Melted . | . . . . Heat Transferred 448 | . 348 . 100 Parts Sabotaged . | . . . . Parts Stolen . | . . . . Parts Stripped . | . . . . Power Chain Reactions . | . . . . Missiles Intercepted . | . . . . Alert | -11 -10 -9 -9 ------- Run | Scr Mat Mat Min Peak Influence 285 | . 285 150 133 Initial 120 | . . 120 58 Average 93 | . 123 139 77 Maximum Alert Level 1 | . 1 . . Low Security (%) 86 | 100 64 100 100 Level 1 13 | . 35 . . Level 2 . | . . . . Level 3 . | . . . . Level 4 . | . . . . Level 5 . | . . . . High Security . | . . . . Max Security . | . . . . Squads Dispatched 4 | . 4 . . Investigation 1 | . 1 . . Extermination . | . . . . Reinforcement 3 | . 3 . . Assault . | . . . . Garrison . | . . . . Intercept . | . . . . Construction Impeded . | . . . . Haulers Reinforced . | . . . . Stealth | -11 -10 -9 -9 --------- Run | Scr Mat Mat Min Distress Signals 2 | . 1 1 . Communications Jammed . | . . . . Distress Signals . | . . . . Times Spotted 25 | . 15 2 8 Peak Tracking Total 5 | . 5 3 5 Tactical Retreats 4 | . 2 . 2 Traps | -11 -10 -9 -9 ------- Run | Scr Mat Mat Min Traps Triggered 1 | . 1 . . Indirectly . | . . . . Trap Hack Attempts . | . . . . Triggered . | . . . . Disarmed . | . . . . Reprogrammed . | . . . . Reused . | . . . . Traps Extracted . | . . . . Installed . | . . . . Triggered . | . . . . Machines | -11 -10 -9 -9 ---------- Run | Scr Mat Mat Min Machines Disabled 1 | . . . 1 Max in Single Turn 1 | . . . 1 Machines Sabotaged . | . . . . Garrisons Compromised . | . . . . Overloaded Fab Kills . | . . . . Fab Network Shutdowns . | . . . . Hacking | -11 -10 -9 -9 --------- Run | Scr Mat Mat Min Machines Accessed 1 | . 1 . . Terminals . | . . . . Fabricators . | . . . . Repair Stations . | . . . . Recycling Units 1 | . 1 . . Scanalyzers . | . . . . Garrison Access . | . . . . Total Hacks 1 | . 1 . . Successful 1 | . 1 . . Failed . | . . . . Catastrophic . | . . . . Database Lockouts . | . . . . Manual . | . . . . Terminals . | . . . . Fabricators . | . . . . Repair Stations . | . . . . Recycling Units 1 | . 1 . . Scanalyzers . | . . . . Garrison Access . | . . . . Terminal Hacks . | . . . . Fabricator Hacks . | . . . . Repair Station Hacks . | . . . . Recycling Unit Hacks 1 | . 1 . . Report Inventory 1 | . 1 . . Scanalyzer . | . . . . Garrison Access Hacks . | . . . . Unauthorized Hacks . | . . . . Terminals . | . . . . Fabricators . | . . . . Repair Stations . | . . . . Recycling Units . | . . . . Scanalyzers . | . . . . Garrison Access . | . . . . Data Cores Recovered . | . . . . Used . | . . . . Hacking Detections . | . . . . Full Trace Events . | . . . . Feedback Events . | . . . . Feedback Blocked . | . . . . Robot Schematics Acquired . | . . . . Robots Built . | . . . . Matter . | . . . . Time . | . . . . Total Robot Build Rating . | . . . . Part Schematics Acquired . | . . . . Parts Built . | . . . . Matter . | . . . . Time . | . . . . Total Part Build Rating . | . . . . Parts Repaired . | . . . . Time . | . . . . Parts Recycled . | . . . . Recycled Matter . | . . . . Retrieved Matter . | . . . . Retrieved Components . | . . . . Parts Scanalyzed . | . . . . Part Schematics Acquired . | . . . . Parts Damaged . | . . . . Bothacking | -11 -10 -9 -9 ------------ Run | Scr Mat Mat Min Used RIF Installer . | . . . . Robots Hacked . | . . . . Non-combat . | . . . . Combat . | . . . . Robot Hacks Applied . | . . . . Relay Couplers Released . | . . . . Robots Rewired . | . . . . Allies Hacked . | . . . . Hacks Repelled . | . . . . Allies | -11 -10 -9 -9 -------- Run | Scr Mat Mat Min Total Allies . | . . . . Largest Group . | . . . . Highest-Rated Group . | . . . . Highest-Rated Ally . | . . . . Total Orders . | . . . . Ally Attacks . | . . . . Total Damage . | . . . . Kills . | . . . . Allies Corrupted . | . . . . Allies Melted . | . . . . Intel | -11 -10 -9 -9 ------- Run | Scr Mat Mat Min Robot Analysis Total . | . . . . Derelict Logs Recovered 2 | . . . 2 Drone Launches . | . . . . Drone Recoveries . | . . . . Exploration | -11 -10 -9 -9 ------------- Run | Scr Mat Mat Min Turns Passed 575 | 47 218 49 261 Spaces Moved 666 | 41 214 116 295 Core 10 | 1 . . 9 Treads . | . . . . Legs . | . . . . Wheels 155 | 40 83 . 32 Hover . | . . . . Flight 501 | . 131 116 254 Fastest Speed 34 | 50 37 34 34 Average Speed 50 | 89 57 36 44 Slowest Speed 117 | 100 90 37 117 Overloaded Moves . | . . . . Propulsion Burnouts . | . . . . Robots Hopped 5 | . 2 1 2 Cave-ins Triggered . | . . . . Exploration Rate (%) 29 | 3 36 18 59 Regions Visited 3 Branch Regions 1 Pre-discovered Areas 1 | . . . 1 Known Exits Taken . | . . . . Unknown Exits Taken 3 | 1 1 1 . Scrap Searched 2 | . . . 2 Spaces Dug . | . . . . Terrain Destroyed . | . . . . Melee . | . . . . Projectile . | . . . . AOE . | . . . . Terrain Rammed . | . . . . Walls Destroyed . | . . . . Machines Disabled . | . . . . Actions | -11 -10 -9 -9 --------- Run | Scr Mat Mat Min Total 838 | 48 267 122 401 Wait 70 | . 3 . 67 Move 653 | 40 209 113 291 Hop 5 | . 2 1 2 Pick Up 15 | 2 8 2 3 Fast Attach 12 | 6 . 1 5 Attach 18 | . 8 2 8 Detach 11 | . 7 . 4 Swap 4 | . 3 . 1 Drop 10 | . 4 3 3 Fire 37 | . 23 . 14 Melee . | . . . . Ram 3 | . . . 3 Kick . | . . . . Crush . | . . . . Escape Stasis . | . . . . Rewire . | . . . . Trap . | . . . . Miscellaneous . | . . . . Route ------- -11/Scrapyard -10/Materials -9/Materials -9/Mines History --------- Turn | Location | Event 25 | -11/Scrapyard | Discovered new exit (range 15) 48 | -11/Scrapyard | Entered Materials 242 | -10/Materials | Discovered new exit (range 15) 259 | -10/Materials | Core integrity fell below 50% 266 | -10/Materials | Entered another Materials area 266 | -9/Materials | Evolved 2 slots: Propulsion x2 290 | -9/Materials | Discovered new exit (range 9) 315 | -9/Materials | Entered Mines 316 | -9/Mines | Joined a pair of Derelicts in attacking an 0b10 outpost 351 | -9/Mines | Build established: Mutant 457 | -9/Mines | Learned location of 1 exit from Proximity Caves 523 | -9/Mines | Lost 4 parts (2n1u1w) 523 | -9/Mines | Core integrity fell below 50% 563 | -9/Mines | Lost 4 parts (1p1n2w) 568 | -9/Mines | Core integrity fell below 20% 576 | -9/Mines | Destroyed by L-31 Rogue with Katana Last Messages --------------- Flight Unit destroyed. S-10 Pest destroyed. Critical hit. Assault Rifle destroyed. Acquired 10 matter. Acquired Flight Unit. Acquired Lgt. Ion Engine. Acquired Lgt. Assault Rifle. Laser Drill disabled. Destroyed Flight Unit. Flight Unit destroyed. Slammed into S-10 Pest. Lgt. Assault Rifle destroyed. Mining Laser destroyed. Lgt. Ion Engine destroyed. Acquired Wheel. Acquired Structural Scanner. K-01 Serf collects debris. Slammed into K-01 Serf. Wheel destroyed. Map ----- +----------------------------------------------------+ | ???## ## ##???????????????????????????????????? | | ???# #???????????????????????????????????? | | ???# #???????????????????????????????????? | | ???## ##???????????????????????????????????? | | ????# ##????????????????????????????????????? | | ????# ##?????????????????????????????????????? | | ????# ##??????????????????????????????????????? | | ????## #???????????????????????????????????????? | | ?????## #???????????????????????????????????????? | | ??????# #???????????????????????????????????????? | | ??????# #???????????????????????????????????????? | | ??????# ###?????????????????????????????????????? | | ??????# #?????????????????????????????????????? | | ??????#### #????????????????????????????????###### | | ?????????# #????????????????????????????????# | | ?????????# #????????????????????? ??????????# | | ???####### #?????###???????????? ??????????# "" | | ???# #????? #?????###### ????????????# "" | | ???# ##### ### #?# #?????# ?????????????# !"" | | ?????????# #?# #????? ??????????????# ! | | ?????????# ####### ##????# #???????????????# "" | | ?????????# #???## ###### #???????????????# "" | | ?????????# #?### ## #???????????????# "" | | ?????????# ### ####????????????# | | ?????????# ##???????????# ### | | ?????????#### @ #???????????# #?? | | ????????????## l ############# #?? | | ?????????????# ## ## s #?? | | ????????????# #### #### g #?? | | ???????????# ###??#####??#####################?? | | ??????????# ##?????????????????????????????????? | | ?????????# #???????????????????????????????????? | | ?????????####????????????????????????????????????? | | ?????????????????????????????????????????????????? | | | | | | | | | | | | | | | | | | | | | | | | | | | | | | | | | +----------------------------------------------------+ Best States ------------- Heat Dissipation 28 Energy Generation 18 Energy Capacity 250 Matter Stores 300 Matter Capacity 300 Sight Range 16 Terrain Scan Density 10 Evasion (%) 63 Targeting Accuracy 6 Item Schematics ----------------- None Robot Schematics ------------------ None Fabricated ------------ Nothing Alien Tech Used ----------------- None Achievements -------------- None Challenges ------------ None Game ------ Seed ForceNodeRailgun Manual? 0 Play Time 00:21:41 Cumulative 9.4 hours Start 2021.06.15 @ 23:11:15 End 2021.06.15 @ 23:31:23 Sessions 1 Manual Loads 0 Difficulty Rogue Special Mode None Game No. 12 Rogue 9 Adventurer 3 Explorer 0 Win Type - Total 0 Types 0/0/0/0/0/0/0/0/0 Lore% 15 Gallery% 12 Achievement% 13 Wizard Run 0 Options --------- ASCII 0 Keyboard 0 Movement Numpad Keybinds 0 Fullscreen 2 Font 32/Terminus Map View 76x50 Tactical HUD 0 Map Filters NONE Filters NONE Steam 1 RUN: 28679f39-fe0c-48f7-a4be-f3c1d43c634b